fUST/lending_fUST_20250531
["ID","MTS","AMOUNT","RATE_DAILY","PERIOD"]
[363370489,1748700647347,-529.54459199,0.0001726,2]
[363370490,1748700647356,-397.20016576,0.0001726,2]
[363370491,1748700647366,-430.0,0.0001726,2]
[363370492,1748700647375,-430.0,0.0001726,2]
[363370493,1748700647384,-430.0,0.0001726,2]
[363370494,1748700647393,-430.0,0.0001726,2]
[363370495,1748700647402,-430.0,0.0001726,2]
[363370496,1748700647413,-704.72,0.0001726,2]
[363370497,1748700647425,-430.0,0.0001726,2]
[363370498,1748700647435,-430.0,0.0001726,2]
[363370499,1748700647445,-430.0,0.0001726,2]
[363370500,1748700647454,-430.0,0.0001726,2]
[363370501,1748700647463,-430.0,0.0001726,2]
[363370502,1748700647473,-430.0,0.0001726,2]
[363370503,1748700647482,-260.0,0.0001726,2]
[363370504,1748700647491,-430.0,0.0001726,2]
[363370505,1748700647502,-430.0,0.0001726,2]
[363370506,1748700647511,-639.52,0.0001726,2]
[363370507,1748700647521,-430.0,0.0001726,2]
[363370508,1748700647530,-430.0,0.0001726,2]
[363370509,1748700647540,-1092.46,0.0001726,2]
[363370510,1748700647549,-447.66,0.0001726,2]
[363370511,1748700647559,-430.0,0.0001726,2]
[363370512,1748700647569,-430.0,0.0001726,2]
[363370513,1748700647578,-430.0,0.0001726,2]
[363370514,1748700647587,-430.0,0.0001726,2]
[363370515,1748700647596,-430.0,0.0001726,2]
[363370516,1748700647606,-430.0,0.0001726,2]
[363370517,1748700647615,-430.0,0.0001726,2]
[363370518,1748700647625,-430.0,0.0001726,2]
[363370519,1748700647635,-455.94947969,0.0001726,2]
[363370520,1748700647646,-430.0,0.0001726,2]
[363370521,1748700647656,-250.0,0.000175,30]
[363370522,1748700647668,-430.0,0.00017534,2]
[363370523,1748700647678,-261.900668,0.00017534,2]
[363370524,1748700647688,-261.900668,0.00017534,2]
[363370525,1748700647698,-151.0,0.00017534,2]
[363370526,1748700647708,-430.0,0.00017534,2]
[363370527,1748700647717,-430.0,0.00017534,2]
[363370528,1748700647727,-433.7011679,0.00017534,2]
[363370529,1748700647736,-520.891896,0.00017534,2]
[363370530,1748700647746,-520.891896,0.00017534,2]
[363370531,1748700647755,-430.0,0.00017534,2]
[363370532,1748700647765,-151.0,0.00017534,2]
[363370533,1748700647774,-430.0,0.00017534,2]
[363370534,1748700647784,-430.0,0.00017534,2]
[363370535,1748700647794,-448.54498822,0.00017534,2]
[363370536,1748700647803,-430.0,0.00017534,2]
[363370537,1748700647813,-430.0,0.00017534,2]
[363370538,1748700647822,-588.79,0.00017534,2]
[363370539,1748700647831,-430.0,0.00017534,2]
[363370540,1748700647840,-430.0,0.00017534,2]
[363370541,1748700647850,-430.0,0.00017534,2]
[363370542,1748700647859,-430.0,0.00017534,2]
[363370543,1748700647868,-506.38224862,0.00017534,2]
[363370544,1748700647878,-430.0,0.00017534,2]
[363370545,1748700647887,-451.98,0.00017534,2]
[363370546,1748700647897,-430.0,0.00017534,2]
[363370547,1748700647906,-511.12658918,0.00017534,2]
[363370548,1748700647916,-430.0,0.00017534,2]
[363370549,1748700647926,-430.0,0.00017534,2]
[363370550,1748700647935,-528.64,0.00017534,2]
[363370551,1748700647945,-430.0,0.00017534,2]
[363370552,1748700647954,-430.0,0.00017534,2]
[363370553,1748700647963,-430.0,0.00017534,2]
[363370554,1748700647974,-1460.57,0.00017534,2]
[363370555,1748700647983,-430.0,0.00017534,2]
[363370556,1748700647992,-1848.08,0.00017534,2]
[363370557,1748700648001,-464.83,0.00017534,2]
[363370558,1748700648011,-430.0,0.00017534,2]
[363370559,1748700648019,-430.0,0.00017534,2]
[363370560,1748700648029,-430.0,0.00017534,2]
[363370561,1748700648039,-430.0,0.00017534,2]
[363370562,1748700648048,-1263.04,0.00017534,2]
[363370563,1748700648058,-430.0,0.00017534,2]
[363370564,1748700648068,-430.0,0.00017534,2]
[363370565,1748700648077,-2028.81,0.00017534,2]
[363370566,1748700648086,-430.0,0.00017534,2]
[363370567,1748700648099,-430.0,0.00017534,2]
[363370568,1748700648108,-430.0,0.00017534,2]
[363370569,1748700648118,-430.0,0.00017534,2]
[363370570,1748700648128,-430.0,0.00017534,2]
[363370571,1748700648138,-430.0,0.00017534,2]
[363370572,1748700648148,-430.0,0.00017534,2]
[363370573,1748700648157,-3276.09,0.00017534,2]
[363370574,1748700648167,-430.0,0.00017534,2]
[363370575,1748700648178,-430.0,0.00017534,2]
[363370576,1748700648188,-430.0,0.00017534,2]
[363370577,1748700648198,-2370.4,0.00017534,2]
[363370578,1748700648208,-430.0,0.00017534,2]
[363370579,1748700648217,-482.51,0.00017534,2]
[363370580,1748700648227,-430.0,0.00017534,2]
[363370581,1748700648237,-430.0,0.00017534,2]
[363370582,1748700648247,-829.34,0.00017534,2]
[363370583,1748700648256,-430.0,0.00017534,2]
[363370584,1748700648267,-430.0,0.00017534,2]
[363370585,1748700648276,-1249.75,0.00017534,2]
[363370586,1748700648286,-685.88,0.00017534,2]
[363370587,1748700648296,-1057.94,0.00017534,2]
[363370588,1748700648306,-430.0,0.00017534,2]
[363370589,1748700648316,-430.0,0.00017534,2]
[363370590,1748700648325,-430.0,0.00017534,2]
[363370591,1748700648335,-430.0,0.00017534,2]
[363370592,1748700648344,-430.0,0.00017534,2]
[363370593,1748700648354,-430.0,0.00017534,2]
[363370594,1748700648364,-736.9,0.00017534,2]
[363370595,1748700648373,-430.0,0.00017534,2]
[363370596,1748700648383,-430.0,0.00017534,2]
[363370597,1748700648393,-430.0,0.00017534,2]
[363370598,1748700648403,-430.0,0.00017534,2]
[363370599,1748700648412,-430.0,0.00017534,2]
[363370600,1748700648421,-430.0,0.00017534,2]
[363370601,1748700648431,-430.0,0.00017534,2]
[363370602,1748700648440,-430.0,0.00017534,2]
[363370603,1748700648450,-704.72,0.00017534,2]
[363370604,1748700648459,-430.0,0.00017534,2]
[363370605,1748700648469,-430.0,0.00017534,2]
[363370606,1748700648479,-430.0,0.00017534,2]
[363370607,1748700648488,-430.0,0.00017534,2]
[363370608,1748700648498,-430.0,0.00017534,2]
[363370609,1748700648508,-430.0,0.00017534,2]
[363370610,1748700648517,-430.0,0.00017534,2]
[363370611,1748700648527,-639.52,0.00017534,2]
[363370612,1748700648537,-430.0,0.00017534,2]
[363370613,1748700648547,-430.0,0.00017534,2]
[363370614,1748700648556,-1092.46,0.00017534,2]
[363370615,1748700648566,-447.66,0.00017534,2]
[363370616,1748700648575,-430.0,0.00017534,2]
[363370617,1748700648585,-430.0,0.00017534,2]
[363370618,1748700648595,-430.0,0.00017534,2]
[363370619,1748700648605,-430.0,0.00017534,2]
[363370620,1748700648614,-430.0,0.00017534,2]
[363370621,1748700648623,-430.0,0.00017534,2]
[363370622,1748700648633,-430.0,0.00017534,2]
[363370623,1748700648644,-430.0,0.00017534,2]
[363370624,1748700648654,-430.0,0.00017534,2]
[363370625,1748700648663,-431.18350247,0.00017712,2]
[363370626,1748700648673,-160.0,0.00017787,2]
[363370627,1748700648683,-160.0,0.00017787,2]
[363370628,1748700648694,-212.77096907,0.00017787,2]
[363370629,1748700648703,-842.5625,0.00017787,2]
[363370630,1748700648713,-229.3428821,0.00017787,2]
[363370631,1748700648723,-423.4608169,0.00017787,2]
[363370632,1748700648733,-160.0,0.00017787,2]
[363370633,1748700648742,-160.0,0.00017787,2]
[363370634,1748700648751,-160.0,0.00017807,2]
[363370635,1748700648761,-314.03460454,0.00017808,2]
[363370636,1748700648771,-430.0,0.00017808,2]
[363370637,1748700648781,-524.85258946,0.00017808,2]
[363370638,1748700648791,-430.0,0.00017808,2]
[363370639,1748700648800,-430.0,0.00017808,2]
[363370640,1748700648810,-430.0,0.00017808,2]
[363370641,1748700648819,-430.0,0.00017808,2]
[363370642,1748700648829,-588.79,0.00017808,2]
[363370643,1748700648839,-430.0,0.00017808,2]
[363370644,1748700648849,-241.33522581,0.00017808,2]
[363370645,1748700648858,-430.0,0.00017808,2]
[363370646,1748700648868,-290.0,0.00017808,2]
[363370647,1748700648877,-430.0,0.00017808,2]
[363370648,1748700648887,-451.98,0.00017808,2]
[363370649,1748700648897,-430.0,0.00017808,2]
[363370650,1748700648907,-430.0,0.00017808,2]
[363370651,1748700648918,-430.0,0.00017808,2]
[363370652,1748700648928,-528.64,0.00017808,2]
[363370653,1748700648938,-430.0,0.00017808,2]
[363370654,1748700648949,-430.0,0.00017808,2]
[363370655,1748700648959,-1460.57,0.00017808,2]
[363370656,1748700648969,-430.0,0.00017808,2]
[363370657,1748700648979,-1848.08,0.00017808,2]
[363370658,1748700648990,-464.83,0.00017808,2]
[363370659,1748700649000,-430.0,0.00017808,2]
[363370660,1748700649009,-430.0,0.00017808,2]
[363370661,1748700649019,-430.0,0.00017808,2]
[363370662,1748700649029,-1263.04,0.00017808,2]
[363370663,1748700649038,-430.0,0.00017808,2]
[363370664,1748700649048,-430.0,0.00017808,2]
[363370665,1748700649057,-2028.81,0.00017808,2]
[363370666,1748700649067,-430.0,0.00017808,2]
[363370667,1748700649076,-430.0,0.00017808,2]
[363370668,1748700649086,-430.0,0.00017808,2]
[363370669,1748700649098,-430.0,0.00017808,2]
[363370670,1748700649108,-430.0,0.00017808,2]
[363370671,1748700649118,-430.0,0.00017808,2]
[363370672,1748700649127,-430.0,0.00017808,2]
[363370673,1748700649137,-3276.09,0.00017808,2]
[363370674,1748700649148,-430.0,0.00017808,2]
[363370675,1748700649158,-430.0,0.00017808,2]
[363370676,1748700649168,-430.0,0.00017808,2]
[363370677,1748700649179,-2370.4,0.00017808,2]
[363370678,1748700649189,-430.0,0.00017808,2]
[363370679,1748700649199,-482.51,0.00017808,2]
[363370680,1748700649209,-430.0,0.00017808,2]
[363370681,1748700649219,-829.34,0.00017808,2]
[363370682,1748700649229,-430.0,0.00017808,2]
[363370683,1748700649239,-258.33,0.00017808,2]
[363370684,1748700649249,-1249.75,0.00017808,2]
[363370685,1748700649258,-685.88,0.00017808,2]
[363370686,1748700649268,-1057.94,0.00017808,2]
[363370687,1748700649278,-430.0,0.00017808,2]
[363370688,1748700649287,-430.0,0.00017808,2]
[363370689,1748700649298,-430.0,0.00017808,2]
[363370690,1748700649308,-430.0,0.00017808,2]
[363370691,1748700649318,-430.0,0.00017808,2]
[363370692,1748700649327,-736.9,0.00017808,2]
[363370693,1748700649337,-380.28137939,0.00017808,2]
[363370694,1748700649347,-430.0,0.00017808,2]
[363370695,1748700649356,-430.0,0.00017808,2]
[363370696,1748700649366,-430.0,0.00017808,2]
[363370697,1748700649376,-430.0,0.00017808,2]
[363370698,1748700649386,-430.0,0.00017808,2]
[363370699,1748700649396,-430.0,0.00017808,2]
[363370700,1748700649406,-430.0,0.00017808,2]
[363370701,1748700649416,-704.72,0.00017808,2]
[363370702,1748700649426,-430.0,0.00017808,2]
[363370703,1748700649436,-430.0,0.00017808,2]
[363370704,1748700649446,-430.0,0.00017808,2]
[363370705,1748700649455,-432.15,0.00017808,2]
[363370706,1748700649465,-539.90961659,0.00017808,2]
[363370707,1748700649475,-430.0,0.00017808,2]
[363370708,1748700649484,-430.0,0.00017808,2]
[363370709,1748700649493,-639.52,0.00017808,2]
[363370710,1748700649503,-430.0,0.00017808,2]
[363370711,1748700649512,-430.0,0.00017808,2]
[363370712,1748700649522,-1092.46,0.00017808,2]
[363370713,1748700649532,-447.66,0.00017808,2]
[363370714,1748700649580,-430.0,0.00017808,2]
[363370715,1748700649591,-430.0,0.00017808,2]
[363370716,1748700649600,-430.0,0.00017808,2]
[363370717,1748700649610,-430.0,0.00017808,2]
[363370718,1748700649619,-430.0,0.00017808,2]
[363370719,1748700649628,-430.0,0.00017808,2]
[363370720,1748700649637,-430.0,0.00017808,2]
[363370721,1748700649646,-188.019854,0.00017816,2]
[363370722,1748700649656,-188.019854,0.00017816,2]
[363370723,1748700649666,-1124.9081512,0.000179,2]
[363370724,1748700649675,-420.0,0.00017951,2]
[363370725,1748700649684,-162.74,0.00018,2]
[363370726,1748700649694,-151.0,0.00018082,2]
[363370727,1748700649703,-430.0,0.00018082,2]
[363370728,1748700649712,-430.0,0.00018082,2]
[363370729,1748700649722,-518.55836005,0.00018082,2]
[363370730,1748700649731,-430.0,0.00018082,2]
[363370731,1748700649740,-430.0,0.00018082,2]
[363370732,1748700649749,-588.79,0.00018082,2]
[363370733,1748700649758,-430.0,0.00018082,2]
[363370734,1748700649767,-541.80950237,0.00018082,2]
[363370735,1748700649777,-430.0,0.00018082,2]
[363370736,1748700649786,-451.98,0.00018082,2]
[363370737,1748700649795,-367.8405064,0.00018082,2]
[363370738,1748700649805,-430.0,0.00018082,2]
[363370739,1748700649814,-430.0,0.00018082,2]
[363370740,1748700649823,-528.64,0.00018082,2]
[363370741,1748700649833,-430.0,0.00018082,2]
[363370742,1748700649843,-430.0,0.00018082,2]
[363370743,1748700649852,-1460.57,0.00018082,2]
[363370744,1748700649862,-430.0,0.00018082,2]
[363370745,1748700649871,-1848.08,0.00018082,2]
[363370746,1748700649880,-464.83,0.00018082,2]
[363370747,1748700649890,-430.0,0.00018082,2]
[363370748,1748700649899,-430.0,0.00018082,2]
[363370749,1748700649908,-1263.04,0.00018082,2]
[363370750,1748700649918,-430.0,0.00018082,2]
[363370751,1748700649927,-2028.81,0.00018082,2]
[363370752,1748700649937,-430.0,0.00018082,2]
[363370753,1748700649946,-430.0,0.00018082,2]
[363370754,1748700649956,-430.0,0.00018082,2]
[363370755,1748700649965,-430.0,0.00018082,2]
[363370756,1748700649974,-430.0,0.00018082,2]
[363370757,1748700649983,-430.0,0.00018082,2]
[363370758,1748700649994,-3276.09,0.00018082,2]
[363370759,1748700650004,-430.0,0.00018082,2]
[363370760,1748700650013,-523.78,0.00018082,2]
[363370761,1748700650022,-2370.4,0.00018082,2]
[363370762,1748700650031,-430.0,0.00018082,2]
[363370763,1748700650040,-482.51,0.00018082,2]
[363370764,1748700650050,-430.0,0.00018082,2]
[363370765,1748700650059,-829.34,0.00018082,2]
[363370766,1748700650069,-1249.75,0.00018082,2]
[363370767,1748700650078,-685.88,0.00018082,2]
[363370768,1748700650087,-1057.94,0.00018082,2]
[363370769,1748700650099,-430.0,0.00018082,2]
[363370770,1748700650108,-430.0,0.00018082,2]
[363370771,1748700650118,-430.0,0.00018082,2]
[363370772,1748700650127,-430.0,0.00018082,2]
[363370773,1748700650136,-736.9,0.00018082,2]
[363370774,1748700650147,-430.0,0.00018082,2]
[363370775,1748700650156,-568.51930906,0.00018082,2]
[363370776,1748700650167,-430.0,0.00018082,2]
[363370777,1748700650182,-430.0,0.00018082,2]
[363370778,1748700650191,-430.0,0.00018082,2]
[363370779,1748700650200,-430.0,0.00018082,2]
[363370780,1748700650210,-704.72,0.00018082,2]
[363370781,1748700650219,-430.0,0.00018082,2]
[363370782,1748700650228,-430.0,0.00018082,2]
[363370783,1748700650238,-430.0,0.00018082,2]
[363370784,1748700650247,-430.0,0.00018082,2]
[363370785,1748700650257,-639.52,0.00018082,2]
[363370786,1748700650267,-430.0,0.00018082,2]
[363370787,1748700650276,-430.0,0.00018082,2]
[363370788,1748700650286,-1092.46,0.00018082,2]
[363370789,1748700650295,-447.66,0.00018082,2]
[363370790,1748700650304,-430.0,0.00018082,2]
[363370791,1748700650313,-430.0,0.00018082,2]
[363370792,1748700650323,-430.0,0.00018082,2]
[363370793,1748700650332,-430.0,0.00018082,2]
[363370794,1748700650341,-430.0,0.00018082,2]
[363370795,1748700650351,-430.0,0.00018082,2]
[363370796,1748700650360,-430.0,0.00018082,2]
[363370797,1748700650369,-1124.90815118,0.00018141,2]
[363370798,1748700650379,-261.900668,0.00018356,2]
[363370799,1748700650388,-261.900668,0.00018356,2]
[363370800,1748700650397,-250.0,0.00018356,2]
[363370801,1748700650406,-520.891896,0.00018356,2]
[363370802,1748700650416,-520.891896,0.00018356,2]
[363370803,1748700650425,-430.0,0.00018356,2]
[363370804,1748700650434,-151.0,0.00018356,2]
[363370805,1748700650444,-430.0,0.00018356,2]
[363370806,1748700650453,-430.0,0.00018356,2]
[363370807,1748700650462,-588.79,0.00018356,2]
[363370808,1748700650471,-432.38,0.00018356,2]
[363370809,1748700650480,-430.0,0.00018356,2]
[363370810,1748700650490,-451.98,0.00018356,2]
[363370811,1748700650499,-340.92,0.00018356,2]
[363370812,1748700650509,-430.0,0.00018356,2]
[363370813,1748700650518,-528.64,0.00018356,2]
[363370814,1748700650528,-430.0,0.00018356,2]
[363370815,1748700650537,-430.0,0.00018356,2]
[363370816,1748700650546,-1460.57,0.00018356,2]
[363370817,1748700650557,-430.0,0.00018356,2]
[363370818,1748700650566,-1848.08,0.00018356,2]
[363370819,1748700650576,-464.83,0.00018356,2]
[363370820,1748700650585,-430.0,0.00018356,2]
[363370821,1748700650594,-1263.04,0.00018356,2]
[363370822,1748700650604,-430.0,0.00018356,2]
[363370823,1748700650613,-2028.81,0.00018356,2]
[363370824,1748700650623,-430.0,0.00018356,2]
[363370825,1748700650632,-430.0,0.00018356,2]
[363370826,1748700650641,-430.0,0.00018356,2]
[363370827,1748700650650,-430.0,0.00018356,2]
[363370828,1748700650660,-430.0,0.00018356,2]
[363370829,1748700650669,-430.0,0.00018356,2]
[363370830,1748700650679,-3276.09,0.00018356,2]
[363370831,1748700650688,-430.0,0.00018356,2]
[363370832,1748700650698,-2370.4,0.00018356,2]
[363370833,1748700650708,-482.51,0.00018356,2]
[363370834,1748700650718,-430.0,0.00018356,2]
[363370835,1748700650727,-829.34,0.00018356,2]
[363370836,1748700650736,-1249.75,0.00018356,2]
[363370837,1748700650746,-685.88,0.00018356,2]
[363370838,1748700650755,-1057.94,0.00018356,2]
[363370839,1748700650764,-430.0,0.00018356,2]
[363370840,1748700650774,-430.0,0.00018356,2]
[363370841,1748700650783,-430.0,0.00018356,2]
[363370842,1748700650792,-430.0,0.00018356,2]
[363370843,1748700650802,-736.9,0.00018356,2]
[363370844,1748700650811,-430.0,0.00018356,2]
[363370845,1748700650822,-430.0,0.00018356,2]
[363370846,1748700650831,-704.72,0.00018356,2]
[363370847,1748700650841,-430.0,0.00018356,2]
[363370848,1748700650851,-430.0,0.00018356,2]
[363370849,1748700650860,-373.21,0.00018356,2]
[363370850,1748700650869,-430.0,0.00018356,2]
[363370851,1748700650878,-639.52,0.00018356,2]
[363370852,1748700650887,-430.0,0.00018356,2]
[363370853,1748700650896,-430.0,0.00018356,2]
[363370854,1748700650905,-1092.46,0.00018356,2]
[363370855,1748700650914,-447.66,0.00018356,2]
[363370856,1748700650923,-430.0,0.00018356,2]
[363370857,1748700650932,-430.0,0.00018356,2]
[363370858,1748700650941,-430.0,0.00018356,2]
[363370859,1748700650950,-430.0,0.00018356,2]
[363370860,1748700650960,-430.0,0.00018356,2]
[363370861,1748700650970,-430.0,0.00018356,2]
[363370862,1748700650979,-1124.90815118,0.00018383,2]
[363370863,1748700650989,-1124.90815118,0.00018624,2]
[363370864,1748700650998,-188.019854,0.0001863,2]
[363370865,1748700651007,-188.019854,0.0001863,2]
[363370866,1748700651016,-430.0,0.0001863,2]
[363370867,1748700651026,-248.69871671,0.0001863,2]
[363370868,1748700651035,-430.0,0.0001863,2]
[363370869,1748700651044,-588.79,0.0001863,2]
[363370870,1748700651054,-430.0,0.0001863,2]
[363370871,1748700651063,-451.98,0.0001863,2]
[363370872,1748700651072,-430.0,0.0001863,2]
[363370873,1748700651082,-528.64,0.0001863,2]
[363370874,1748700651091,-430.0,0.0001863,2]
[363370875,1748700651104,-430.0,0.0001863,2]
[363370876,1748700651114,-1460.57,0.0001863,2]
[363370877,1748700651124,-340.0,0.0001863,2]
[363370878,1748700651133,-1848.08,0.0001863,2]
[363370879,1748700651143,-464.83,0.0001863,2]
[363370880,1748700651152,-430.0,0.0001863,2]
[363370881,1748700651163,-1263.04,0.0001863,2]
[363370882,1748700651173,-430.0,0.0001863,2]
[363370883,1748700651183,-2028.81,0.0001863,2]
[363370884,1748700651192,-430.0,0.0001863,2]
[363370885,1748700651202,-430.0,0.0001863,2]
[363370886,1748700651211,-430.0,0.0001863,2]
[363370887,1748700651221,-430.0,0.0001863,2]
[363370888,1748700651230,-430.0,0.0001863,2]
[363370889,1748700651239,-430.0,0.0001863,2]
[363370890,1748700651249,-3276.09,0.0001863,2]
[363370891,1748700651259,-430.0,0.0001863,2]
[363370892,1748700651268,-2370.4,0.0001863,2]
[363370893,1748700651278,-482.51,0.0001863,2]
[363370894,1748700651287,-430.0,0.0001863,2]
[363370895,1748700651297,-829.34,0.0001863,2]
[363370896,1748700651306,-1249.75,0.0001863,2]
[363370897,1748700651316,-685.88,0.0001863,2]
[363370898,1748700651325,-1057.94,0.0001863,2]
[363370899,1748700651335,-430.0,0.0001863,2]
[363370900,1748700651345,-430.0,0.0001863,2]
[363370901,1748700651354,-430.0,0.0001863,2]
[363370902,1748700651364,-430.0,0.0001863,2]
[363370903,1748700651373,-736.9,0.0001863,2]
[363370904,1748700651382,-430.0,0.0001863,2]
[363370905,1748700651391,-430.0,0.0001863,2]
[363370906,1748700651401,-704.72,0.0001863,2]
[363370907,1748700651410,-430.0,0.0001863,2]
[363370908,1748700651421,-430.0,0.0001863,2]
[363370909,1748700651430,-430.0,0.0001863,2]
[363370910,1748700651439,-639.52,0.0001863,2]
[363370911,1748700651448,-430.0,0.0001863,2]
[363370912,1748700651458,-430.0,0.0001863,2]
[363370913,1748700651467,-1092.46,0.0001863,2]
[363370914,1748700651477,-447.66,0.0001863,2]
[363370915,1748700651487,-430.0,0.0001863,2]
[363370916,1748700651497,-430.0,0.0001863,2]
[363370917,1748700651507,-430.0,0.0001863,2]
[363370918,1748700651516,-430.0,0.0001863,2]
[363370919,1748700651525,-430.0,0.0001863,2]
[363370920,1748700651536,-431.18350247,0.00018811,2]
[363370921,1748700651546,-1124.90815118,0.00018866,2]
[363370922,1748700651556,-1938.36668922,0.000189,2]
[363370923,1748700651565,-430.0,0.00018904,2]
[363370924,1748700651575,-430.0,0.00018904,2]
[363370925,1748700651584,-588.79,0.00018904,2]
[363370926,1748700651593,-430.0,0.00018904,2]
[363370927,1748700651603,-451.98,0.00018904,2]
[363370928,1748700651612,-441.03,0.00018904,2]
[363370929,1748700651622,-528.64,0.00018904,2]
[363370930,1748700651631,-430.0,0.00018904,2]
[363370931,1748700651641,-430.0,0.00018904,2]
[363370932,1748700651651,-1460.57,0.00018904,2]
[363370933,1748700651661,-1848.08,0.00018904,2]
[363370934,1748700651671,-464.83,0.00018904,2]
[363370935,1748700651681,-430.0,0.00018904,2]
[363370936,1748700651691,-1263.04,0.00018904,2]
[363370937,1748700651700,-469.67,0.00018904,2]
[363370938,1748700651710,-2028.81,0.00018904,2]
[363370939,1748700651719,-430.0,0.00018904,2]
[363370940,1748700651729,-430.0,0.00018904,2]
[363370941,1748700651738,-430.0,0.00018904,2]
[363370942,1748700651748,-430.0,0.00018904,2]
[363370943,1748700651757,-430.0,0.00018904,2]
[363370944,1748700651766,-430.0,0.00018904,2]
[363370945,1748700651776,-3276.09,0.00018904,2]
[363370946,1748700651787,-430.0,0.00018904,2]
[363370947,1748700651797,-2370.4,0.00018904,2]
[363370948,1748700651806,-482.51,0.00018904,2]
[363370949,1748700651816,-430.0,0.00018904,2]
[363370950,1748700651826,-829.34,0.00018904,2]
[363370951,1748700651836,-1249.75,0.00018904,2]
[363370952,1748700651845,-685.88,0.00018904,2]
[363370953,1748700651855,-1057.94,0.00018904,2]
[363370954,1748700651864,-430.0,0.00018904,2]
[363370955,1748700651874,-430.0,0.00018904,2]
[363370956,1748700651883,-430.0,0.00018904,2]
[363370957,1748700651893,-430.0,0.00018904,2]
[363370958,1748700651903,-736.9,0.00018904,2]
[363370959,1748700651914,-430.0,0.00018904,2]
[363370960,1748700651925,-704.72,0.00018904,2]
[363370961,1748700651935,-323.52,0.00018904,2]
[363370962,1748700651945,-430.0,0.00018904,2]
[363370963,1748700651955,-639.52,0.00018904,2]
[363370964,1748700651965,-430.0,0.00018904,2]
[363370965,1748700651975,-1092.46,0.00018904,2]
[363370966,1748700651985,-447.66,0.00018904,2]
[363370967,1748700651995,-430.0,0.00018904,2]
[363370968,1748700652004,-430.0,0.00018904,2]
[363370969,1748700652014,-430.0,0.00018904,2]
[363370970,1748700652024,-430.0,0.00018904,2]
[363370971,1748700652033,-3000.0,0.00019,2]
[363370972,1748700652043,-3000.0,0.0001901,2]
[363370973,1748700652054,-3000.0,0.0001902,2]
[363370974,1748700652064,-3000.0,0.0001903,2]
[363370975,1748700652074,-3000.0,0.0001904,2]
[363370976,1748700652086,-3000.0,0.0001905,2]
[363370977,1748700652097,-3000.0,0.0001906,2]
[363370978,1748700652108,-3000.0,0.0001907,2]
[363370979,1748700652118,-4086.293586,0.0001908,2]
[363370980,1748700652127,-1124.90815118,0.00019107,2]
[363370981,1748700652137,-151.0,0.00019178,2]
[363370982,1748700652147,-430.0,0.00019178,2]
[363370983,1748700652156,-588.79,0.00019178,2]
[363370984,1748700652167,-430.0,0.00019178,2]
[363370985,1748700652177,-451.98,0.00019178,2]
[363370986,1748700652188,-528.64,0.00019178,2]
[363370987,1748700652198,-430.0,0.00019178,2]
[363370988,1748700652208,-430.0,0.00019178,2]